Cogmind - Beta 15 @@@ ROGUE MODE // 2025.10.18 @ 23:16:40 Player: aliser Result: Destroyed by H-66 Slayer with Gauss Rifle Performance ------------- Evolutions (4) 2000 Regions Visited (11) 2200 Robots Destroyed (90) 450 Value Destroyed (4276) 4276 Prototype IDs (10) 200 Alien Tech Used (0) 0 Bonus (2313) 2313 TOTAL SCORE: 11439 Bonus ------- High Alert Combat Kills 213 Follower Combat Kills 434 Entered Garrisons 400 Used RIF Installer 1000 Entered DSFs 500 Friendly Fire -234 Cogmind --------- Core Integrity 0/850 Matter 212/300 Energy 315/315 System Corruption 0% Temperature Cool (0) Movement Walking (120) Location -6/Extension Parts ------- > --- POWER (1) -------- Neutrino Core > --- PROPULSION (4) --- Carbon-fiber Leg Carbon-fiber Leg Carbon-fiber Leg Flexi-carbon Leg > --- UTILITY (8) ------ Large Storage Unit Improved Terrain Scanner Relay Coupler [NC] (13) Relay Coupler [Swarmer] (40) Relay Coupler [Grunt] (25) Relay Coupler [Hunter] (14) > --- WEAPON (2) ------- Hardcell Cannon Micro-nuke Launcher > --- INVENTORY (15) --- Light Fission Core Energy Well (350) Compact Matter Pod (150) Quantum Capacitor Advanced ECM Suite Focal Shield Relay Coupler [NC] (31) Relay Coupler [Cutter] (27) Relay Coupler [Brawler] (31) Relay Coupler [Demolisher] (31) Relay Coupler [Hunter] (25) Relay Coupler [Proto] (15) Heavy Beamcaster Maul Peak State ------------ > --- POWER ------------ Antimatter Reactor > --- PROPULSION ------- Heavy Treads Heavy Treads > --- UTILITY ---------- Large Storage Unit Hardened Medium Armor Plating Point Defense System Authchip [R/Combat] Relay Coupler [NC] Relay Coupler [Duelist] Relay Coupler [Hunter] Relay Coupler [Hunter] > --- WEAPON ----------- Heavy Rocket Launcher Remote Datajack > --- INVENTORY -------- Cooled Ion Engine Improved Cooling System Energy Well Compact Matter Pod Terrain Scanner Advanced Terrain Scan Processor Advanced ECM Suite Focal Shield System Shield Relay Coupler [NC] Relay Coupler [Cutter] Relay Coupler [Hunter] Beamcaster Remote Datajack Maul [Rating: 72] Favorites ----------- Power Cooled Ion Engine Engine Cooled Ion Engine Power Core Neutrino Core Reactor Antimatter Reactor Propulsion Light Treads Treads Light Treads Leg Carbon-fiber Leg Wheel Compact Wheel Flight Unit VTOL Module Utility Large Storage Unit Device Terrain Scanner Storage Large Storage Unit Processor Targeting Computer Hackware Relay Coupler [NC] Protection Hardened Medium Armor Plating Weapon Remote Datajack Energy Gun Beamcaster Energy Cannon Advanced Beam Cannon Ballistic Gun Assault Rifle Ballistic Cannon Improved Light Cannon Launcher Heavy Rocket Launcher Special Weapon Remote Datajack Impact Weapon Maul Piercing Weapon Kinetic Spear Build | -11 -10 -9 -8 -8 -7 -7 -6 -6 -6 -6 -6 ------- Run | Yrd Mat Mat Mat Gar Fac DSF Fac Was Fac Gar Ext Slots Evolved 8 | . . 2 2 . 2 . 2 . . . . Power . | . . . . . . . . . . . . Propulsion 2 | . . 1 1 . . . . . . . . Utility 6 | . . 1 1 . 2 . 2 . . . . Weapon . | . . . . . . . . . . . . Parts Attached 110 | 6 5 20 6 6 5 5 5 8 2 29 13 Power 10 | 1 . 3 1 . . . 1 2 . 1 1 Engine 6 | 1 . 2 1 . . . 1 . . 1 . Core 2 | . . 1 . . . . . . . . 1 Reactor 2 | . . . . . . . . 2 . . . Propulsion 29 | 2 . 4 1 3 . 2 . 2 . 8 7 Treads 13 | 2 . 3 1 1 . 2 . 2 . . 2 Leg 12 | . . 1 . . . . . . . 6 5 Wheel 2 | . . . . 2 . . . . . . . Hover . | . . . . . . . . . . . . Flight 2 | . . . . . . . . . . 2 . Utility 48 | 1 3 5 3 2 4 3 4 2 2 17 2 Device 11 | . . . 1 1 . . 1 1 . 6 1 Storage 3 | 1 1 . . . . . 1 . . . . Processor 2 | . . 1 . . . . . . . 1 . Hackware 17 | . . . . . 4 1 1 . 1 10 . Protection 15 | . 2 4 2 1 . 2 1 1 1 . 1 Artifact . | . . . . . . . . . . . . Weapon 23 | 2 2 8 1 1 1 . . 2 . 3 3 Energy Gun 4 | . . 1 . . . . . . . 2 1 Energy Cannon 3 | . . 2 . . . . . 1 . . . Ballistic Gun 3 | 2 . 1 . . . . . . . . . Ballistic Cannon 4 | . . 3 . . . . . . . . 1 Launcher 4 | . 1 . 1 1 . . . . . . 1 Special Weapon 3 | . 1 . . . 1 . . . . 1 . Impact Weapon 1 | . . 1 . . . . . . . . . Slashing Weapon . | . . . . . . . . . . . . Piercing Weapon 1 | . . . . . . . . 1 . . . Special Melee Weapon . | . . . . . . . . . . . . Unidentified Prototypes 5 | . . 2 1 . . . . 2 . . . Parts Lost 36 | . . 6 . 1 . 4 2 . . 19 4 Power 4 | . . 1 . . . 1 . . . 1 1 Propulsion 8 | . . 1 . 1 . 1 2 . . 3 . Utility 19 | . . 4 . . . 1 . . . 12 2 Weapon 5 | . . . . . . 1 . . . 3 1 Highest Loss Streak 12 | . . 4 . 1 . 2 1 . . 12 2 To Critical Strikes . | . . . . . . . . . . . . Average Backups 13 | 3 6 14 14 15 15 14 13 15 15 13 13 Power . | 1 1 1 . 1 1 1 . . 1 1 1 Propulsion . | . 1 2 2 . . . . . . . . Utility 7 | . 1 5 4 7 10 9 9 9 9 9 10 Weapon 3 | 1 2 4 6 3 2 3 3 3 3 1 2 Tool/Special . | . . . . . . . . . . . . Unused Backups 36 | . 3 5 8 1 . . 2 . 1 4 12 Power 2 | . . . . . . . . . . 1 1 Propulsion 4 | . 2 1 1 . . . . . . . . Utility 21 | . 1 2 4 . . . 2 . . 1 11 Weapon 9 | . . 2 3 1 . . . . 1 2 . Tool/Special . | . . . . . . . . . . . . Average Slot Usage (%) 90 | . 97 99 98 99 80 83 91 88 86 80 97 Engine 6 | . 14 8 9 9 7 5 5 3 . 3 3 Treads 15 | . 28 31 35 22 15 12 20 15 13 4 2 Leg 5 | . . 1 . . . . . . . 10 21 Wheel 1 | . . . . 13 7 7 5 . . . . Device 4 | . . . 8 8 7 . 5 6 4 4 6 Storage 8 | . 19 11 9 9 7 7 6 6 6 6 6 Hackware 18 | . . . . . 3 25 25 26 30 28 32 Protection 10 | . 6 18 18 18 15 9 12 13 10 3 3 Energy Cannon 1 | . . 3 . 8 3 . . . . . . Ballistic Gun 2 | . 26 7 . . . . . . . . . Ballistic Cannon 3 | . . 10 11 8 7 5 . . . . 3 Launcher 1 | . . . 6 . . . . . . . 2 Special Weapon 3 | . . . . . 3 7 6 6 6 4 2 Impact Weapon 2 | . . . . . . . . 5 6 4 3 Peak Build Rating 72 | 6 8 17 23 28 38 38 39 67 64 72 65 Average Rating 37 | 2 7 13 21 26 31 32 37 54 62 49 55 On Entrance 29 | . 6 8 15 23 26 38 28 37 62 64 52 Naked Turns . | . . . . . . . . . . . . Heaviest Build 63 | 14 34 41 51 63 53 44 48 60 59 62 59 Greatest Support 140 | 40 40 63 83 83 16 60 60 140 140 140 65 Greatest Overweight (x) 10 | . . . . 3 3 2 2 1 . 10 2 Average Overweight (x) . | . . . . . 2 1 1 . . . . Largest Inventory Capacity 15 | 8 15 15 15 15 15 15 15 15 15 15 15 Average Capacity 14 | 6 13 15 15 15 15 15 15 15 15 15 15 Most Carried 15 | 5 15 15 15 15 15 15 15 15 15 15 15 Average Carried 13 | 3 6 14 14 14 14 14 13 14 14 13 14 Final Capacity 15 | 8 15 15 15 15 15 15 15 15 15 15 15 Final Carried 15 | 2 15 15 15 15 13 15 15 15 15 15 15 Class Distribution -------------------- 59% | Bothacker-Mutant 25% | Mutant 14% | Scavenger-Mutant Dominant Class ---------------- Mutant | -10/Materials Mutant | -9/Materials Scavenger-Mutant | -8/Materials Mutant | -8/Garrison Mutant | -7/Factory Bothacker-Mutant | -7/DSF Bothacker-Mutant | -6/Factory Bothacker-Mutant | -6/Waste Bothacker-Mutant | -6/Factory Bothacker-Mutant | -6/Garrison Scavenger-Mutant | -6/Extension Resources | -11 -10 -9 -8 -8 -7 -7 -6 -6 -6 -6 -6 ----------- Run | Yrd Mat Mat Mat Gar Fac DSF Fac Was Fac Gar Ext Matter Collected 3077 | 230 235 461 210 291 . 132 106 252 . 763 397 Remotely . | . . . . . . . . . . . . Salvage Created 3413 | . 232 670 159 429 . . . 210 . 1141 572 Parts 144 | . 12 36 16 39 . . . 1 . 25 15 Haulers Intercepted 2 | . . 1 1 . . . . . . . . Recyclers Shooed 1 | . . 1 . . . . . . . . . Parts Field Recycled . | . . . . . . . . . . . . Retrieved Matter . | . . . . . . . . . . . . Parts Self-Destructed . | . . . . . . . . . . . . Prevented . | . . . . . . . . . . . . Kills | -11 -10 -9 -8 -8 -7 -7 -6 -6 -6 -6 -6 ------- Run | Yrd Mat Mat Mat Gar Fac DSF Fac Was Fac Gar Ext Combat Hostiles Destroyed 72 | . 5 10 6 16 . . . . . 25 10 Melee 2 | . . . . . . . . . . 2 . Guns 15 | . 5 5 . . . . . . . 5 . Cannons 22 | . . 4 2 10 . . . . . . 6 AOE 28 | . . . 4 6 . . . . . 14 4 Classes Destroyed 13 | . 2 6 3 1 . . . . . 1 . Worker 2 | . . 2 . . . . . . . . . Builder 2 | . . 1 1 . . . . . . . . Tunneler 1 | . . . 1 . . . . . . . . Hauler 2 | . . 1 1 . . . . . . . . Recycler 3 | . . 2 . . . . . . . . 1 Watcher 5 | . 1 4 . . . . . . . . . Swarmer 19 | . . . 3 7 . . . . . 9 . Grunt 30 | . 5 4 . 5 . . . . . 14 2 Brawler 1 | . . 1 . . . . . . . . . Duelist 3 | . . . . 2 . . . . . 1 . Sentry 15 | . . 5 2 2 . . . . . 2 4 Hunter 1 | . . . 1 . . . . . . . . Programmer 2 | . . . . . . . . . . 1 1 Thug 1 | . . . . . . . . . . . 1 Savage 1 | . . . . . . . . . . . 1 Butcher 2 | . . . . . . . . . . . 2 Best Kill Streak 8 | . 2 6 7 8 . . . . . 7 6 Combat Bots Only 8 | . 2 5 4 8 . . . . . 7 5 Max Kills in Single Turn 6 | . 1 2 4 6 . . . . . 3 3 Gunslinging . | . . . . . . . . . . . . Exploded 6 | . . . 2 6 . . . . . 3 2 Melee 1 | . . . . . . . . . . 1 . Uniques/NPCs Destroyed . | . . . . . . . . . . . . Combat | -11 -10 -9 -8 -8 -7 -7 -6 -6 -6 -6 -6 -------- Run | Yrd Mat Mat Mat Gar Fac DSF Fac Was Fac Gar Ext Hostile Shots Fired 876 | . 30 81 29 26 . 95 24 . 13 376 202 Missed 302 | . 7 15 9 8 . 42 4 . 2 139 76 Hits 574 | . 23 66 20 18 . 53 20 . 11 237 126 Melee 2 | . . 2 . . . . . . . . . Projectile 572 | . 23 64 20 18 . 53 20 . 11 237 126 Critical Strikes 9 | . . 3 . . . 2 . . . 2 2 Damage Taken 7109 | . 287 947 309 257 . 880 316 . 157 2571 1385 Core 1130 | . 11 95 24 24 . 125 18 . 18 566 249 Absorbed by Shields 11 | . . . . . . 11 . . . . . Redirected to Shielding 43 | . . . . . . 43 . . . . . Ignored by Resistances 102 | . . . . . . 4 . . . 38 60 Core Remaining (%) 88 | 100 95 76 . 91 . 82 . . . . . Volleys Fired 272 | . 23 54 17 41 . 10 10 . 9 66 42 Largest 2 | . 2 2 2 2 . 1 1 . 1 1 2 Hottest 120 | . 120 101 72 107 . 5 5 . 5 75 104 Shots Fired 397 | . 46 109 34 67 . 10 10 . 9 66 46 Gun 91 | . 45 30 . . . . . . . 16 . Cannon 208 | . . 79 30 65 . . . . . . 34 Launcher 27 | . . . 4 2 . . . . . 17 4 Special 71 | . 1 . . . . 10 10 . 9 33 8 Kinetic 228 | . 45 95 30 24 . . . . . . 34 Thermal 72 | . 1 14 . 41 . . . . . 16 . Explosive 27 | . . . 4 2 . . . . . 17 4 Electromagnetic . | . . . . . . . . . . . . Robot Hit Streak 16 | . 12 16 9 9 . 7 6 . 15 16 5 Robot Miss Streak 8 | . 2 3 8 2 . 1 1 . . 3 5 Penetration Max . | . . . . . . . . . . . . Secondary Targets 1 | . . 1 . . . . . . . . . Max Gunslinging Chain 1 | . . 1 . . . . . . . . . Shots Hit Robots 265 | . 33 72 21 29 . 7 8 3 9 62 21 Core Hits 129 | . 13 25 12 23 . . . . . 37 19 Critical Kills 2 | . . 1 . . . . . . . 1 . Critical Parts Destroyed 9 | . . 1 . . . . . 1 . 7 . Critical Strikes 14 | . . 2 1 . . . . 1 . 9 1 Burn 1 | . . . . . . . . . . 1 . Meltdown 1 | . . 1 . . . . . . . . . Destroy 1 | . . 1 . . . . . . . . . Blast 2 | . . . 1 . . . . . . . 1 Smash 9 | . . . . . . . . 1 . 8 . Melee Attacks 47 | . . 3 . . . . . 3 2 39 . Impact 47 | . . 3 . . . . . 3 2 39 . Slashing . | . . . . . . . . . . . . Piercing . | . . . . . . . . . . . . Sneak Attacks 7 | . . . . . . . . . . 7 . Combat Hostiles 3 | . . . . . . . . . . 3 . Follow-up Attacks . | . . . . . . . . . . . . Damage Inflicted 8503 | . 422 1340 561 963 . . . 215 . 3487 1515 Guns 924 | . 422 317 . . . . . . . 185 . Cannons 2614 | . . 1023 369 581 . . . . . . 641 Explosions 3264 | . . . 192 382 . . . . . 1816 874 Melee 1700 | . . . . . . . . 214 . 1486 . Ramming 1 | . . . . . . . . 1 . . . Kinetic 2787 | . 422 1144 369 211 . . . . . . 641 Thermal 751 | . . 196 . 370 . . . . . 185 . Explosive 3264 | . . . 192 382 . . . . . 1816 874 Electromagnetic . | . . . . . . . . . . . . Impact 1700 | . . . . . . . . 214 . 1486 . Slashing . | . . . . . . . . . . . . Piercing . | . . . . . . . . . . . . Highest Corruption 4 | . . 4 . . . . . . . . . Average Corruption 4 | . . 4 . . . . . . . . . Corruption Purged . | . . . . . . . . . . . . Corruption Blocked . | . . . . . . . . . . . . Effects 12 | . . 12 . . . . . . . . . Message Errors 3 | . . 3 . . . . . . . . . Matter Fused 4 | . . 4 . . . . . . . . . Heat Flow Errors 1 | . . 1 . . . . . . . . . Energy Discharges 1 | . . 1 . . . . . . . . . Data Loss (minor) 1 | . . 1 . . . . . . . . . Data Loss (major) 1 | . . 1 . . . . . . . . . Misfires 1 | . . 1 . . . . . . . . . Overload Shots . | . . . . . . . . . . . . Overflow Damage 854 | . . 17 10 . . . . 142 . 655 30 Projectiles 51 | . . 17 10 . . . . . . . 24 Explosions 70 | . . . . . . . . . . 64 6 Melee 733 | . . . . . . . . 142 . 591 . Knockbacks 14 | . . 2 . 5 . . . 1 . 4 2 Impact 5 | . . . . . . . . 1 . 4 . Kinetic 8 | . . 2 . 4 . . . . . . 2 Secondary 1 | . . . . 1 . . . . . . . Self-Inflicted Damage 172 | . . . . . . . . . . 172 . Shots 6 | . . . . . . . . . . 6 . Rammed . | . . . . . . . . . . . . Targets Rammed 1 | . . . . . . . . 1 . . . Kicked . | . . . . . . . . . . . . Crushed 1 | . . . . . . . . 1 . . . Highest Temperature 285 | . 35 285 117 60 . . . . . 146 148 Average Temperature 52 | . 6 80 54 12 . . . . . 36 82 Received Heat Transfer 1725 | . 159 330 9 108 . 18 . . . 744 357 Effects 1 | . . 1 . . . . . . . . . Energy Bleed 1 | . . 1 . . . . . . . . . Siege Activations . | . . . . . . . . . . . . Martial Activations . | . . . . . . . . . . . . Shielding Activations . | . . . . . . . . . . . . Robots Disrupted . | . . . . . . . . . . . . Combat Hostiles . | . . . . . . . . . . . . Robots Corrupted 9 | . . . . . . . . 1 . 8 . Combat Hostiles 4 | . . . . . . . . . . 4 . Parts Fried 8 | . . . . . . . . 1 . 7 . Impact Corruptions 23 | . . . . . . . . 4 . 19 . Robots Melted 1 | . . 1 . . . . . . . . . Combat Hostiles 1 | . . 1 . . . . . . . . . Parts Melted 4 | . . 3 . . . . . . . 1 . Heat Transferred 1480 | . . 407 . 666 . . . . . 407 . Parts Sabotaged . | . . . . . . . . . . . . Parts Stolen . | . . . . . . . . . . . . Parts Stripped . | . . . . . . . . . . . . Power Chain Reactions . | . . . . . . . . . . . . Alert | -11 -10 -9 -8 -8 -7 -7 -6 -6 -6 -6 -6 ------- Run | Yrd Mat Mat Mat Gar Fac DSF Fac Was Fac Gar Ext Maximum Alert Level 3 | . . . . 2 1 1 . . . 3 2 Low Security (%) 52 | 100 100 100 100 38 . . 100 100 100 9 . Level 1 15 | . . . . 7 100 100 . . . 5 80 Level 2 26 | . . . . 54 . . . . . 64 19 Level 3 5 | . . . . . . . . . . 19 . Level 4 . | . . . . . . . . . . . . Level 5 . | . . . . . . . . . . . . High Security . | . . . . . . . . . . . . Max Security . | . . . . . . . . . . . . Peak Influence 861 | . 61 163 118 633 331 263 114 . 54 861 451 Initial 451 | . . 14 39 18 331 231 114 . . 23 451 Average 252 | . 17 80 46 348 331 242 31 . 24 526 328 Influence Increases 3360 | . 153 428 216 625 . 47 . . 114 1228 549 Destroy 0b10 Robot/C 1680 | . 100 200 120 320 . 20 . . 40 560 320 Destroy 0b10 Robot/NC 100 | . 5 50 15 . . . . . . 15 15 Destroy Leader 276 | . 32 80 42 20 . 10 . . 10 40 42 Allied During Kill 62 | . . . . . . 2 . . 3 18 39 Successful Hack 150 | . . . . 30 . . . . 44 35 41 Disable Machine 90 | . 15 45 . . . . . . . 15 15 Anti-Garrison Action 500 | . . . . 150 . . . . . 350 . Destroy Structure 322 | . 1 8 39 90 . . . . 2 120 62 Lose Combat Pursuer 180 | . . 45 . 15 . 15 . . 15 75 15 Influence Decreases 2950 | . 118 369 282 20 302 160 218 . 80 401 1000 Entered New Map 1013 | . . 21 55 10 302 100 104 . . 11 410 Time Decay 1167 | . 118 298 227 . . . 114 . 60 . 350 Lost Part 330 | . . 50 . 10 . 40 . . . 190 40 Lost Ally 440 | . . . . . . 20 . . 20 200 200 Squads Dispatched 8 | . 1 1 . . . 1 1 . . . 4 Investigation 4 | . 1 . . . . . 1 . . . 2 Extermination . | . . . . . . . . . . . . Reinforcement 4 | . . 1 . . . 1 . . . . 2 Assault . | . . . . . . . . . . . . Garrison . | . . . . . . . . . . . . Intercept . | . . . . . . . . . . . . Searches Triggered . | . . . . . . . . . . . . Construction Impeded . | . . . . . . . . . . . . Haulers Reinforced . | . . . . . . . . . . . . Active Scanning Responses . | . . . . . . . . . . . . Cargo Convoy Interrupts . | . . . . . . . . . . . . Stealth | -11 -10 -9 -8 -8 -7 -7 -6 -6 -6 -6 -6 --------- Run | Yrd Mat Mat Mat Gar Fac DSF Fac Was Fac Gar Ext Distress Signals 4 | . . . . . . . . . . . 4 Communications Jammed . | . . . . . . . . . . . . Distress Signals . | . . . . . . . . . . . . Times Spotted 130 | . 6 20 5 16 . 10 1 . 5 44 23 Peak Tracking Total 10 | . 3 6 3 9 . 5 1 . 5 10 5 Tactical Retreats 8 | . . 2 . 1 . 1 . . 1 2 1 Traps | -11 -10 -9 -8 -8 -7 -7 -6 -6 -6 -6 -6 ------- Run | Yrd Mat Mat Mat Gar Fac DSF Fac Was Fac Gar Ext Traps Triggered 10 | . 1 . 1 2 . 1 2 . . 3 . Indirectly . | . . . . . . . . . . . . Trap Hack Attempts . | . . . . . . . . . . . . Triggered . | . . . . . . . . . . . . Disarmed 1 | . . . . . . . . . . . 1 Reprogrammed . | . . . . . . . . . . . . Reused . | . . . . . . . . . . . . Traps Extracted . | . . . . . . . . . . . . Installed . | . . . . . . . . . . . . Triggered . | . . . . . . . . . . . . Machines | -11 -10 -9 -8 -8 -7 -7 -6 -6 -6 -6 -6 ---------- Run | Yrd Mat Mat Mat Gar Fac DSF Fac Was Fac Gar Ext Machines Disabled 14 | . 1 3 . 3 . . . . . 6 1 Max in Single Turn 1 | . 1 1 . 1 . . . . . 1 1 Garrison Relay 6 | . . . . 3 . . . . . 3 . Machines Repaired . | . . . . . . . . . . . . Machines Dismantled . | . . . . . . . . . . . . Machines Sabotaged . | . . . . . . . . . . . . Overloaded Fab Kills . | . . . . . . . . . . . . Hacking | -11 -10 -9 -8 -8 -7 -7 -6 -6 -6 -6 -6 --------- Run | Yrd Mat Mat Mat Gar Fac DSF Fac Was Fac Gar Ext Machines Accessed 26 | . 1 3 3 3 1 . 2 . 3 3 7 Terminals 19 | . 1 2 1 3 1 . 1 . 1 3 6 Fabricators 1 | . . . . . . . 1 . . . . Repair Stations . | . . . . . . . . . . . . Recycling Units 3 | . . 1 1 . . . . . . . 1 Scanalyzers 1 | . . . . . . . . . 1 . . Garrison Access 2 | . . . 1 . . . . . 1 . . Total Hacks 61 | . 2 8 8 6 1 . 3 . 7 4 22 Successful 28 | . . 2 5 2 1 . . . 6 3 9 Failed 33 | . 2 6 3 4 . . 3 . 1 1 13 Catastrophic 11 | . . 1 2 1 . . 1 . . . 6 Database Lockouts . | . . . . . . . . . . . . Manual 17 | . 2 5 4 . . . . . . . 6 Terminals 46 | . 2 5 4 6 1 . 2 . 2 4 20 Fabricators 1 | . . . . . . . 1 . . . . Repair Stations . | . . . . . . . . . . . . Recycling Units 8 | . . 3 3 . . . . . . . 2 Scanalyzers 3 | . . . . . . . . . 3 . . Garrison Access 3 | . . . 1 . . . . . 2 . . Terminal Hacks 17 | . . . 1 2 1 . . . 2 3 8 Part Schematic 1 | . . . . . . . . . . . 1 Prototype ID Bank 2 | . . . . . . . . . . . 2 Open Door 1 | . . . . . . . . . . 1 . Open DSF 1 | . . . . . 1 . . . . . . Branch Access Points 1 | . . . . . . . . . 1 . . Emergency Access Points 1 | . . . . . . . . . . 1 . Terminal Index 2 | . . . 1 . . . . . . . 1 Fabricator Index 1 | . . . . . . . . . 1 . . Locate Traps 2 | . . . . . . . . . . . 2 Disarm Traps 1 | . . . . . . . . . . . 1 Zone Layout 1 | . . . . . . . . . . . 1 Garrison Registry 1 | . . . . 1 . . . . . . . Patrol Navigation 1 | . . . . . . . . . . 1 . Security Stations 1 | . . . . 1 . . . . . . . Fabricator Hacks . | . . . . . . . . . . . . Repair Station Hacks . | . . . . . . . . . . . . Recycling Unit Hacks 6 | . . 2 3 . . . . . . . 1 Process 2 | . . 1 1 . . . . . . . . Report Inventory 1 | . . . 1 . . . . . . . . Retrieve Matter 2 | . . 1 1 . . . . . . . . Retrieve Components 1 | . . . . . . . . . . . 1 Scanalyzer 2 | . . . . . . . . . 2 . . Insert Component 1 | . . . . . . . . . 1 . . Analyze 1 | . . . . . . . . . 1 . . Garrison Access Hacks 3 | . . . 1 . . . . . 2 . . Unlock Access 2 | . . . 1 . . . . . 1 . . Coupler Status 1 | . . . . . . . . . 1 . . Unauthorized Hacks . | . . . . . . . . . . . . Terminals . | . . . . . . . . . . . . Fabricators . | . . . . . . . . . . . . Repair Stations . | . . . . . . . . . . . . Recycling Units . | . . . . . . . . . . . . Scanalyzers . | . . . . . . . . . . . . Garrison Access . | . . . . . . . . . . . . Data Cores Recovered . | . . . . . . . . . . . . Used . | . . . . . . . . . . . . Hacking Detections 23 | . 1 3 2 3 . . 2 . 3 2 7 Full Trace Events 3 | . . 1 . . . . . . . . 2 Feedback Events . | . . . . . . . . . . . . Feedback Blocked . | . . . . . . . . . . . . Robot Schematics Acquired . | . . . . . . . . . . . . Robots Built . | . . . . . . . . . . . . Authchips . | . . . . . . . . . . . . Time . | . . . . . . . . . . . . Total Robot Build Rating . | . . . . . . . . . . . . Part Schematics Acquired 1 | . . . . . . . . . . . 1 Parts Built . | . . . . . . . . . . . . Authchips . | . . . . . . . . . . . . Time . | . . . . . . . . . . . . Total Part Build Rating . | . . . . . . . . . . . . Parts Repaired . | . . . . . . . . . . . . Time . | . . . . . . . . . . . . Parts Recycled . | . . . . . . . . . . . . Recycled Matter 281 | . . 135 146 . . . . . . . . Retrieved Matter 281 | . . 135 146 . . . . . . . . Retrieved Components 10 | . . . . . . . . . . . 10 Parts Scanalyzed 1 | . . . . . . . . . 1 . . Part Schematics Acquired . | . . . . . . . . . . . . Parts Damaged 1 | . . . . . . . . . 1 . . Bothacking | -11 -10 -9 -8 -8 -7 -7 -6 -6 -6 -6 -6 ------------ Run | Yrd Mat Mat Mat Gar Fac DSF Fac Was Fac Gar Ext Used RIF Installer 2 | . . . . 1 . . . . . 1 . Coupler Efficiency 1 | . . . . . . . . . . 1 . Robots Hacked 29 | . . . . . . 3 3 . 5 16 2 Non-combat 6 | . . . . . . . 3 . 2 . 1 Combat 23 | . . . . . . 3 . . 3 16 1 Robot Hacks Applied 37 | . . . . . . 5 3 . 7 20 2 parse_system 2 | . . . . . . . . . 1 1 . generate_echo 1 | . . . . . . . 1 . . . . map_walls 2 | . . . . . . . 1 . 1 . . drop_inventory 1 | . . . . . . . . . 1 . . block_reporting 1 | . . . . . . . . . . . 1 find_shortcuts 2 | . . . . . . . . . 1 1 . scatter_targeting 3 | . . . . . . . . . . 3 . overload_power 2 | . . . . . . . 1 . . 1 . amplify_resonance 2 | . . . . . . 1 . . . 1 . wipe_record 1 | . . . . . . . . . . 1 . disable_weapons 1 | . . . . . . . . . 1 . . overwrite_iff 15 | . . . . . . 3 . . 2 9 1 formatsys_high 4 | . . . . . . 1 . . . 3 . Relay Couplers Released 26 | . . . . 13 . . . . . 13 . Machine Destruction 26 | . . . . 13 . . . . . 13 . Attached 15 | . . . . . 4 . 1 . 1 9 . Fabnet Peak Effective % . | . . . . . . . . . . . . Robots Rewired 13 | . . . . . . . . . . 4 9 Allies Hacked . | . . . . . . . . . . . . Hacks Repelled . | . . . . . . . . . . . . Allies | -11 -10 -9 -8 -8 -7 -7 -6 -6 -6 -6 -6 -------- Run | Yrd Mat Mat Mat Gar Fac DSF Fac Was Fac Gar Ext Total Allies 31 | . . . . . . 3 . . 2 16 10 Largest Group 5 | . . . . . . 1 . . 2 2 5 Highest-Rated Group 126 | . . . . . . 90 . . 24 84 126 Highest-Rated Ally 90 | . . . . . . 90 . . 12 43 39 Total Orders . | . . . . . . . . . . . . Ally Attacks 118 | . . . . . . 12 . . 10 46 50 Total Damage 2759 | . . . . . . 398 . . 122 1004 1235 Kills 14 | . . . . . . 1 . . 2 3 8 Allies Corrupted 1 | . . . . . . . . . . 1 . Allies Melted . | . . . . . . . . . . . . Intel | -11 -10 -9 -8 -8 -7 -7 -6 -6 -6 -6 -6 ------- Run | Yrd Mat Mat Mat Gar Fac DSF Fac Was Fac Gar Ext Active Infowar (turns) 2110 | . . . 480 7 . . 436 588 121 391 87 Terrain 1623 | . . . . . . . 436 588 121 391 87 Structural 487 | . . . 480 7 . . . . . . . Robot Analysis Total . | . . . . . . . . . . . . Derelict Logs Recovered . | . . . . . . . . . . . . Drone Launches . | . . . . . . . . . . . . Drone Recoveries . | . . . . . . . . . . . . Exploration | -11 -10 -9 -8 -8 -7 -7 -6 -6 -6 -6 -6 ------------- Run | Yrd Mat Mat Mat Gar Fac DSF Fac Was Fac Gar Ext Turns Passed 6659 | 68 439 860 499 627 10 208 442 592 170 1964 780 Spaces Moved 3505 | 39 213 370 263 375 3 139 283 321 89 978 432 Core 52 | 5 . . . . . . . . . 47 . Treads 1756 | 34 213 370 263 68 . 1 30 321 89 339 28 Legs 996 | . . . . . . . . . . 592 404 Wheels 701 | . . . . 307 3 138 253 . . . . Hover . | . . . . . . . . . . . . Flight . | . . . . . . . . . . . . Fastest Speed 50 | 50 160 160 160 115 130 115 115 160 160 120 120 Average Speed 149 | 145 160 160 160 123 140 127 134 172 160 154 137 Slowest Speed 550 | 160 160 160 160 160 145 166 250 250 160 550 320 Overloaded Moves . | . . . . . . . . . . . . Propulsion Burnouts . | . . . . . . . . . . . . Robots Hopped . | . . . . . . . . . . . . Potential Cave-ins . | . . . . . . . . . . . . Cave-ins Triggered . | . . . . . . . . . . . . Exploration Rate (%) 42 | 3 40 33 20 63 . 74 8 95 5 80 48 Regions Visited 11 Branch Regions 1 Pre-discovered Areas . | . . . . . . . . . . . . Known Exits Taken 3 | . . . 1 . 1 . . . 1 . . Unknown Exits Taken 3 | 1 1 1 . . . . . . . . . Scrap Searched . | . . . . . . . . . . . . Spaces Dug 37 | . . 3 . 19 . . . . 2 7 6 Terrain Destroyed 256 | . . 3 47 30 . . . . 2 83 91 Melee 5 | . . 3 . . . . . . 2 . . Projectile 17 | . . . . . . . . . . . 17 AOE 234 | . . . 47 30 . . . . . 83 74 Terrain Rammed . | . . . . . . . . . . . . Walls Destroyed . | . . . . . . . . . . . . Machines Disabled . | . . . . . . . . . . . . Actions | -11 -10 -9 -8 -8 -7 -7 -6 -6 -6 -6 -6 --------- Run | Yrd Mat Mat Mat Gar Fac DSF Fac Was Fac Gar Ext Total 4465 | 49 263 526 313 470 7 162 344 358 108 1290 575 Wait 207 | . . 43 . 16 . 3 36 . 2 100 7 Move 3496 | 38 212 369 263 374 2 138 283 320 88 977 432 Hop . | . . . . . . . . . . . . Pick Up 85 | 5 16 14 12 6 . 2 5 7 2 15 1 Fast Attach 59 | 3 2 8 1 . . 6 . 8 . 19 12 Attach 28 | 3 . 7 2 . 2 . 4 . . 9 1 Detach 3 | . . 1 . . . . . . . . 2 Swap 49 | . 5 9 4 10 3 . 3 3 3 8 1 Drop 86 | . 5 18 14 7 . 1 3 16 2 10 10 Fire 272 | . 23 54 17 41 . 10 10 . 9 66 42 Melee 47 | . . 3 . . . . . 3 2 39 . Ram . | . . . . . . . . . . . . Kick . | . . . . . . . . . . . . Crush 1 | . . . . . . . . 1 . . . Escape Stasis 23 | . . . . 16 . 2 . . . 5 . Rewire 109 | . . . . . . . . . . 42 67 Trap . | . . . . . . . . . . . . Miscellaneous . | . . . . . . . . . . . . Route ------- -11/Scrapyard -10/Materials -9/Materials -8/Materials -8/Garrison (discovered 3 exits: *Fac x3) -7/Factory -7/DSF -6/Factory -6/Waste -6/Factory (discovered 5 exits: Low x2 / Ext x2 / Gar) -6/Garrison (discovered 3 exits: *Ext x3) -6/Extension History --------- Turn | Location | Event 32 | -11/Scrapyard | Discovered new exit (range 15) 69 | -11/Scrapyard | Entered Materials 330 | -10/Materials | Build established: Mutant 376 | -10/Materials | Discovered new exit (range 4) 508 | -10/Materials | Entered another Materials area 508 | -9/Materials | Evolved 2 slots: Propulsion x1, Utility x1 1078 | -9/Materials | Lost 4 parts (1p1n2u) 1341 | -9/Materials | Discovered new exit (range 16) 1368 | -9/Materials | Entered another Materials area 1368 | -8/Materials | Evolved 2 slots: Propulsion x1, Utility x1 1686 | -8/Materials | Build established: Scavenger-Mutant 1867 | -8/Materials | Identified exit to Garrison 1867 | -8/Materials | Entered Garrison 1913 | -8/Garrison | Triggered checkpoint 1986 | -8/Garrison | Discovered new exit (range 69) 1986 | -8/Garrison | Discovered new exit (range 34) 1986 | -8/Garrison | Discovered new exit (range 88) 1994 | -8/Garrison | Garrison Relay disabled 2039 | -8/Garrison | Learned Factory security intel 2151 | -8/Garrison | Destroyed 8 combat bots 2187 | -8/Garrison | Triggered checkpoint 2214 | -8/Garrison | Installed Relay Interface Framework 2259 | -8/Garrison | Garrison Relay disabled 2303 | -8/Garrison | Triggered checkpoint 2400 | -8/Garrison | Garrison Relay disabled 2417 | -8/Garrison | Triggered checkpoint 2494 | -8/Garrison | Entered Factory 2494 | -7/Factory | Evolved 2 slots: Utility x2 2497 | -7/Factory | Identified exit to DSF 2504 | -7/Factory | Entered DSF 2532 | -7/DSF | Additional patrols routed to DSF 2571 | -7/DSF | Build established: Bothacker-Mutant 2632 | -7/DSF | Discovered new exit (range 13) 2712 | -7/DSF | Entered Factory 2712 | -6/Factory | Evolved 2 slots: Utility x2 3154 | -6/Factory | Sucked down chute 3154 | -6/Factory | Entered Waste 3154 | -6/Waste | The area was eerily silent 3265 | -6/Waste | Found Prototype Device 3265 | -6/Waste | Identified Exp. Thermal Defense Suite 3614 | -6/Waste | Discovered new exit (range 15) 3746 | -6/Waste | Entered Factory 3875 | -6/Factory | Identified exit to Lower Caves 3875 | -6/Factory | Identified exit to Extension 3915 | -6/Factory | Identified exit to Garrison 3916 | -6/Factory | Entered Garrison 4020 | -6/Garrison | Triggered checkpoint 4136 | -6/Garrison | Destroyed 7 combat bots 4212 | -6/Garrison | Triggered checkpoint 4217 | -6/Garrison | Garrison Relay disabled 4331 | -6/Garrison | Discovered exit to Extension (range 13) 4393 | -6/Garrison | Triggered checkpoint 4614 | -6/Garrison | Core integrity fell below 50% 4651 | -6/Garrison | Lost 12 parts (1p2n6u3w) 4948 | -6/Garrison | Triggered checkpoint 4957 | -6/Garrison | Discovered exit to Extension (range 12) 5024 | -6/Garrison | Garrison Relay disabled 5138 | -6/Garrison | Triggered checkpoint 5221 | -6/Garrison | Discovered exit to Extension (range 12) 5238 | -6/Garrison | Expanded RIF knowledge: Coupler Efficiency 5248 | -6/Garrison | Triggered checkpoint 5329 | -6/Garrison | Lost 4 allies 5501 | -6/Garrison | Garrison Relay disabled 5566 | -6/Garrison | Found Quantum Capacitor 5814 | -6/Garrison | Spotted B-75 Beast 5824 | -6/Garrison | Found Relay Coupler [Proto] 5880 | -6/Garrison | Entered Extension 5880 | -6/Extension | Accompanied by 1 ally 5990 | -6/Extension | Spotted B-75 Beast 6004 | -6/Extension | Core integrity fell below 20% 6269 | -6/Extension | Lost 3 allies 6556 | -6/Extension | Lost 4 allies 6660 | -6/Extension | Destroyed by H-66 Slayer with Gauss Rifle Last Messages --------------- 06643_ Penetrated by Slug. 06651_ Dropped Carbon-fiber Leg. 06652_ Acquired Flexi-carbon Leg. 06657_ Slug penetrates Wall. 06657_ Terminal disabled. 06657_ Slug penetrates Door. 06658_ Connecting with Recycling Unit... >>Retrieve(Components) Retrieving 10/15 components... Adv. Heat Sink Hover Unit Lgt. Ion Engine Hacking Suite Imp. Hover Unit Imp. Deuterium Engine Lgt. Treads Lgt. Deuterium Engine Imp. Heat Sink Carbon-fiber Leg 06660_ Slug penetrates Wall. Map ----- +----------------------------------------------------+ | | | | | | | | | | | | | | | | | | | | | | | | | | | | | | | | | | | | | | | ?????????????????#???????????????????????????????? | | ???????#?????????????????????????????????????????? | | ############?########????????????????????????????? | | =#?# [ #?#?########?????????????????? | | #?# ]] #####*""" #?????????????????? | | !/ #?# ] ##"""=*T" ##????????????????? | | #?# ##"Y*@== ] #??????????#?????? | | ########+%#### ] ##"""!!!! ##?#??????????????? | | ?????##*%*% =+ ##### !! #?????????????????? | | #######%=[#######+###???# = !#?????????????????? | | ![!=%%"#???# #########;;######?????????????? | | #######*/*##???# ! #??#??????????? | | ""##?## ##???# #?????????????? | | T##### #???# % #?????????????? | | # ##### #?????#???????? | | ] T + #?#???????????? | | # ########## % #?????????????? | | =] # #????????# #?????????????? | | #######??????####" h #???????????? | | ! #???????????????#"T ???????????? | | #T####??#?????????#??### %%= #??????????? | | ###????????????????#??# =! #??????????? | | ????????????#?????????### % #??????????? | | ????????????????????#??? # % ????????????? | | ???????????????????????# * ?#???????????? | | ?????????#??????????#???# ???????????????? | | ?????????????#??????????# ?# ?????????????????? | | ?????????????????????????????????????????????????? | | ????????#????????????????????????????????????????? | | ???????????????????????????#?????????????????????? | | ?????????????????????????????????????????????????? | +----------------------------------------------------+ Best States ------------- Heat Dissipation 64 Energy Generation 23 Energy Capacity 325 Matter Stores 300 Matter Capacity 300 Sight Range 16 Terrain Scan Range 16 Terrain Scan Density 10 Armor Coverage 675 Resistance: KI 20 Resistance: TH 10 Propulsion Shielding 33 Point Defense Rating 80 Phase Shifting 5 Evasion (%) 60 Targeting Accuracy 5 Recoil Reduction 4 Defensive Hacking 10 Relay Coupler Types 5 Relay Coupler Value 137 Authchip Count 1 Item Schematics ----------------- Remote Datajack | -6/Extension | Hacked Robot Schematics ------------------ None Fabricated ------------ Nothing Repaired ---------- Nothing Alien Tech Used ----------------- None Achievements -------------- Assimilation Complete Error 47 Challenges ------------ None Game ------ Seed OvertunedSkeletonClaw Manual? 0 Play Time 01:36:41 Cumulative 59.5 hours Start 2025.10.18 @ 21:24:39 End 2025.10.18 @ 23:16:40 Sessions 1 Manual Loads 0 Difficulty Rogue Special Mode None Game No. 52 Rogue 52 Adventurer 0 Explorer 0 Win Type - Total 0 Types 0/0/0/0/0/0/0/0/0/0 Lore% 28 Gallery% 41 Achievement% 36 Wizard Run 0 Options --------- Layout 0 ASCII 0 Keyboard 0 Movement Mouse Keybinds 0 Fullscreen 1 Font 36/Smallcaps Map View 76x50 Zoom Use 0% Tactical HUD 1 Map Filters NONE Filters NONE Steam 1 RUN: 371df4c9-454c-4b05-ab5e-9b6bb41abcd8